bitfinex/quotes_BTCUSD_20251214
["timestamp","ask_amount","ask_price","bid_price","bid_amount"]
[1765755922611,0.00011542,88137.0,88136.0,0.34939386]
[1765755922821,0.00011542,88137.0,88136.0,0.07966184]
[1765755923665,0.00011542,88137.0,88136.0,0.001]
[1765755923666,0.11622829,88137.0,88136.0,0.001]
[1765755923941,0.34314774,88137.0,88136.0,0.001]
[1765755924186,0.74623222,88137.0,88136.0,0.001]
[1765755924319,0.01134713,88128.0,88124.0,0.01134764]
[1765755924573,0.01134713,88128.0,88121.0,0.01134803]
[1765755924574,0.11238448,88122.0,88121.0,0.01134803]
[1765755924760,0.11238448,88122.0,88080.0,0.36814212]
[1765755924761,0.11238448,88113.0,88112.0,0.01134919]
[1765755924917,0.11238448,88112.0,88110.0,0.0214]
[1765755925121,0.11238448,88112.0,88109.0,0.01134957]
[1765755925366,0.11238448,88112.0,88110.0,0.02824477]
[1765755925564,0.11238448,88112.0,88106.0,0.23834778]
[1765755925565,0.01134932,88111.0,88107.0,0.01134983]
[1765755925781,0.11238448,88104.0,88101.0,0.22700997]
[1765755927944,0.22695873,88122.0,88100.0,0.25976468]
[1765755927945,0.11238448,88133.0,88132.0,0.01134661]
[1765755928147,0.1124999,88133.0,88132.0,0.01134661]
[1765755928291,0.00011542,88133.0,88132.0,0.2501492]
[1765755929354,0.00311542,88133.0,88132.0,0.2501492]
[1765755930217,0.00611542,88133.0,88132.0,0.2501492]
[1765755930565,0.00611542,88133.0,88132.0,0.14802791]
[1765755930781,0.00611542,88133.0,88132.0,0.10521791]
[1765755931213,0.1184999,88133.0,88132.0,0.01134661]
[1765755931410,0.12011277,88133.0,88132.0,0.01134661]
[1765755933295,0.12011277,88133.0,88130.0,0.01134687]
[1765755933504,0.01907477,88133.0,88127.0,0.01134726]
[1765755933704,0.11238448,88129.0,88128.0,0.25291221]
[1765755936171,0.11638448,88129.0,88128.0,0.25291221]
[1765755940757,0.23350448,88129.0,88128.0,0.02596959]
[1765755940887,0.11238448,88126.0,88125.0,0.01134751]
[1765755941313,0.01134726,88127.0,88124.0,0.01134764]
[1765755941516,0.11238448,88125.0,88124.0,0.01134764]
[1765755942595,0.11338448,88125.0,88124.0,0.01134764]
[1765755942835,0.11438448,88125.0,88124.0,0.01134764]
[1765755943093,0.11438448,88125.0,88124.0,0.23830056]
[1765755943262,0.11438448,88125.0,88124.0,0.31306683]
[1765755944294,0.05101,88125.0,88124.0,0.07476627]
[1765755944496,0.11238448,88113.0,88108.0,0.0113497]
[1765755944693,0.11238448,88110.0,88109.0,0.01134957]
[1765755944843,0.11238448,88110.0,88109.0,0.03631906]
[1765755945931,0.11238448,88110.0,88109.0,0.03731906]
[1765755946467,0.11238448,88110.0,88109.0,0.02596949]
[1765755947469,0.11238448,88110.0,88109.0,0.003]
[1765755947939,0.0113506,88101.0,88095.0,0.01135138]
[1765755948123,0.11238448,88096.0,88093.0,0.23838442]
[1765755948341,0.11238448,88096.0,88095.0,0.2383778]
[1765755948529,0.11238448,88095.0,88094.0,0.05095206]
[1765755949268,0.11238448,88095.0,88094.0,0.0510675]
[1765755950189,0.11238448,88095.0,88094.0,0.00011544]
[1765755950919,0.11712,88095.0,88094.0,0.00011544]
[1765755951103,0.24754448,88095.0,88094.0,0.00311544]
[1765755951439,0.53824448,88095.0,88094.0,0.00211544]
[1765755951686,0.53824448,88095.0,88094.0,0.00011544]
[1765755951942,0.54085735,88095.0,88094.0,0.00011544]
[1765755952123,0.42947287,88095.0,88094.0,0.00011544]
[1765755952445,0.42747287,88095.0,88094.0,0.00011544]
[1765755952594,0.54385735,88095.0,88094.0,0.00011544]
[1765755955188,0.59387574,88095.0,88094.0,0.00011544]
[1765755956335,0.11238448,88063.0,88062.0,0.01135563]
[1765755956539,0.11238448,88063.0,88062.0,0.01174073]
[1765755956742,0.11238448,88063.0,88062.0,0.0003851]
[1765755956948,0.15819448,88063.0,88062.0,0.0003851]
[1765755957158,0.23080448,88063.0,88062.0,0.0003851]
[1765755957924,0.23080448,88063.0,88062.0,0.0023851]
[1765755958248,0.52150448,88063.0,88062.0,0.0023851]
[1765755958403,0.52250448,88063.0,88062.0,0.0003851]
[1765755958954,0.52350448,88063.0,88062.0,0.0003851]
[1765755959984,0.57352287,88063.0,88062.0,0.0003851]
[1765755961630,0.57152287,88063.0,88062.0,0.0003851]
[1765755961939,0.57552287,88063.0,88062.0,0.0003851]
[1765755962345,0.59356287,88063.0,88062.0,0.0003851]
[1765755963165,0.59356287,88063.0,88036.0,0.24857795]
[1765755963166,0.51791592,88022.0,88004.0,0.0214]
[1765755963361,0.6941504,88022.0,88021.0,0.00025673]
[1765755963500,0.81677879,88022.0,88021.0,0.00025673]
[1765755963706,0.45310287,88002.0,88001.0,0.0002]
[1765755963929,0.51695287,88002.0,88001.0,0.00031562]
[1765755964272,0.84196287,88002.0,88001.0,0.00031562]
[1765755964480,0.44889448,88002.0,88001.0,0.00031562]
[1765755964690,0.42112448,88002.0,88001.0,0.00031562]
[1765755964935,0.01804,88005.0,88004.0,0.01136311]
[1765755965132,0.2907,88010.0,88007.0,0.23861525]
[1765755965335,0.2907,88010.0,88009.0,0.05682]
[1765755966640,0.2907,88010.0,88009.0,0.11069]
[1765755966851,0.2907,88010.0,88009.0,0.05682]
[1765755967075,0.2957,88010.0,88009.0,0.01046]
[1765755967285,0.11238448,88002.0,88001.0,0.00031562]
[1765755967500,0.16432448,88002.0,88001.0,0.00031562]
[1765755967905,0.01804,88002.0,88001.0,0.00031562]
[1765755968143,0.11238448,88008.0,88007.0,0.01136273]
[1765755968343,0.11238448,88008.0,88007.0,0.23861738]
[1765755968497,0.11238448,88008.0,88007.0,0.05772273]
[1765755968700,0.11238448,88008.0,88007.0,0.01136273]
[1765755969493,0.11238448,88008.0,88006.0,0.01136286]
[1765755970101,0.11338448,88008.0,88006.0,0.23861831]
[1765755970296,0.11438448,88008.0,88006.0,0.01136286]
[1765755970494,0.11338448,88008.0,88006.0,0.01136286]
[1765755970696,0.11238448,88008.0,88006.0,0.01136286]
[1765755970896,0.11338448,88008.0,88006.0,0.2386186]
[1765755971098,0.11338448,88008.0,88007.0,0.06410255]
[1765755971877,0.11338448,88008.0,88007.0,0.11046255]
[1765755972079,0.11338448,88008.0,88007.0,0.06410255]
[1765755972212,0.11338448,88008.0,88004.0,0.01136311]
[1765755972419,0.11338448,88008.0,88005.0,0.01136299]
[1765755972944,0.11338448,88008.0,88001.0,0.0502992]
[1765755972945,0.01136286,88006.0,88001.0,0.0502992]
[1765755973287,0.11238448,88002.0,88001.0,0.0502992]
[1765755973422,0.11238448,88002.0,88001.0,0.00031562]
[1765755973620,0.11238448,88002.0,88001.0,0.04667562]
[1765755974868,0.01136221,88011.0,88007.0,0.01136273]
[1765755975254,0.11238448,88008.0,88007.0,0.01136273]
[1765755975573,0.11238448,88008.0,88007.0,0.05772273]
[1765755976041,0.11238448,88008.0,88007.0,0.1340788]
[1765755976204,0.11238448,88008.0,88007.0,0.1350788]
[1765755976612,0.01804,88031.0,88028.0,0.01136002]
[1765755976816,0.14178398,88032.0,88028.0,0.01136002]
[1765755977093,0.13042448,88032.0,88030.0,0.04636]
[1765755977298,0.13042448,88032.0,88031.0,0.06776]
[1765755977500,0.13042448,88032.0,88031.0,0.12451974]
[1765755977704,0.42112448,88032.0,88031.0,0.12451974]
[1765755977912,0.42112448,88032.0,88031.0,0.02151562]
[1765755978328,0.42112448,88032.0,88031.0,0.00011562]
[1765755979391,0.42112448,88032.0,88031.0,0.00111562]
[1765755980025,0.46693448,88032.0,88031.0,0.00111562]
[1765755980227,0.46793448,88032.0,88031.0,0.00111562]
[1765755980848,0.46793448,88032.0,88031.0,0.00011562]
[1765755981904,0.42212448,88032.0,88031.0,0.04647562]
[1765755982131,0.001,88032.0,88031.0,0.11281329]
[1765755982349,0.001,88032.0,88031.0,0.05894329]
[1765755982759,0.11238448,88036.0,88032.0,0.23854961]
[1765755983202,0.11238448,88033.0,88032.0,0.0113595]
[1765755983414,0.11238448,88033.0,88031.0,0.01558329]
[1765755983415,0.11238448,88032.0,88031.0,0.00311562]
[1765755983626,0.11238448,88032.0,88031.0,0.00211562]
[1765755984077,0.11238448,88032.0,88031.0,0.00011562]
[1765755985483,0.01054145,88034.0,88031.0,0.09747662]
[1765755985650,0.2907,88038.0,88036.0,0.22717979]
[1765755985826,0.40308448,88038.0,88037.0,0.04636]
[1765755986982,0.40308448,88038.0,88037.0,0.04836]
[1765755987192,0.40308448,88038.0,88037.0,0.12295109]
[1765755987332,0.40308448,88038.0,88037.0,0.04836]
[1765755988421,0.2907,88047.0,88046.0,0.01135769]
[1765755988628,0.2907,88047.0,88046.0,0.31612033]
[1765755988834,0.2907,88047.0,88046.0,0.08896769]
[1765755989051,0.2907,88047.0,88046.0,0.14556832]
[1765755989249,0.01804,88059.0,88056.0,0.0113564]
[1765755989448,0.01804,88059.0,88052.0,0.01135692]
[1765755989449,0.0113564,88056.0,88052.0,0.01135692]
[1765755989584,0.001,88047.0,88044.0,0.01135795]
[1765755989798,0.11238448,88045.0,88044.0,0.05812762]
[1765755990001,0.11238448,88045.0,88044.0,0.28528645]
[1765755991174,0.11238448,88045.0,88044.0,0.33043645]
[1765755991600,0.01135666,88054.0,88051.0,0.01135705]
[1765755991803,0.00161287,88056.0,88053.0,0.23849089]
[1765755992037,0.11238448,88054.0,88053.0,0.36083956]
[1765755992230,0.00161287,88056.0,88053.0,0.31568956]
[1765755992378,0.01804,88059.0,88056.0,0.23848459]
[1765755992575,0.01804,88059.0,88058.0,0.04515]
[1765755992991,0.2907,88064.0,88061.0,0.01135576]
[1765755993200,0.3508293,88071.0,88068.0,0.01135486]
[1765755993436,0.52914482,88071.0,88070.0,0.06655]
[1765755993812,0.52952939,88071.0,88070.0,0.06655]
[1765755994094,0.52952939,88071.0,88070.0,0.09818626]
[1765755994095,0.00038457,88071.0,88070.0,0.09818626]
[1765755994250,0.00038457,88071.0,88070.0,0.15205626]
[1765755994447,0.00638457,88071.0,88070.0,0.15205626]
[1765755994720,0.00038457,88071.0,88070.0,0.15205626]
[1765755995124,0.00038457,88071.0,88070.0,0.17009626]
[1765755995333,0.01135048,88102.0,88096.0,0.01135125]
[1765755995334,0.23836106,88102.0,88096.0,0.01135125]
[1765755995532,0.23836106,88102.0,88095.0,0.22702607]
[1765755995533,0.30205086,88099.0,88097.0,0.04881139]
[1765755995668,0.01135189,88091.0,88086.0,0.01135254]
[1765755996012,0.01135189,88091.0,88084.0,0.23840804]
[1765755996013,0.01135228,88088.0,88084.0,0.01135279]
[1765755996214,0.01135228,88088.0,88078.0,0.22707025]
[1765755996215,0.11238448,88081.0,88078.0,0.01135357]
[1765755996439,0.11238448,88079.0,88078.0,0.01135357]
[1765755996612,0.11238448,88079.0,88078.0,0.08174836]
[1765755996815,0.11238448,88084.0,88083.0,0.01135292]
[1765755997691,0.11238448,88081.0,88080.0,0.01135331]
[1765755997890,0.11238448,88081.0,88078.0,0.31081922]
[1765755998147,0.11238448,88080.0,88078.0,0.31081922]
[1765755998359,0.01135292,88083.0,88078.0,0.31081922]
[1765755998360,0.01135318,88081.0,88078.0,0.002]
[1765755998512,0.40308448,88079.0,88078.0,0.002]
[1765755998743,0.45433735,88079.0,88078.0,0.002]
[1765755999037,0.01135408,88074.0,88070.0,0.06439086]
[1765755999426,0.11238448,88066.0,88065.0,0.01135524]
[1765755999899,0.11238448,88058.0,88056.0,0.22712819]
[1765756000099,0.11238448,88056.0,88055.0,0.01135653]
[1765756000302,0.11238448,88056.0,88055.0,0.03786225]
[1765756000475,0.11238448,88059.0,88058.0,0.01135615]
[1765756000835,0.01054145,88063.0,88060.0,0.01135589]
[1765756001050,0.11238448,88061.0,88060.0,0.01135589]
[1765756001231,0.11238448,88059.0,88058.0,0.01135615]
[1765756001435,0.11238448,88059.0,88058.0,0.08441789]
[1765756001631,0.11238448,88059.0,88058.0,0.12956789]
[1765756001855,0.11238448,88059.0,88058.0,0.07306174]
[1765756002092,0.23847198,88061.0,88055.0,0.02650572]
[1765756002093,0.11238448,88056.0,88055.0,0.02650572]
[1765756002586,0.11238448,88056.0,88055.0,0.00038457]
[1765756002953,0.11238448,88056.0,88055.0,0.04553457]
[1765756003316,0.30205512,88066.0,88063.0,0.0113555]
[1765756003614,0.01135524,88065.0,88062.0,0.01135563]
[1765756003736,0.01135524,88065.0,88063.0,0.05334617]
[1765756003933,0.01135524,88065.0,88064.0,0.0214]
[1765756004986,0.63019203,88064.0,88063.0,0.05334617]
[1765756005178,0.12374037,88060.0,88057.0,0.01135628]
[1765756005399,0.01135589,88060.0,88057.0,0.01135628]
[1765756005551,0.12374037,88060.0,88057.0,0.01135628]
[1765756005966,0.01135615,88058.0,88055.0,0.00038457]
[1765756006176,0.11238448,88056.0,88055.0,0.00038457]
[1765756006402,0.11238448,88056.0,88055.0,0.02427301]
[1765756007683,0.04964,88056.0,88055.0,0.00038457]
[1765756007897,0.23232448,88056.0,88055.0,0.00038457]
[1765756008117,0.11238448,88056.0,88055.0,0.00038457]
[1765756008344,0.01135473,88069.0,88064.0,0.01135537]
[1765756008553,0.01135473,88069.0,88058.0,0.01135615]
[1765756008554,0.33948688,88066.0,88065.0,0.04996476]
[1765756008774,0.40308448,88062.0,88061.0,0.01135576]
[1765756008964,0.23847969,88058.0,88052.0,0.01135692]
[1765756009167,0.11238448,88061.0,88055.0,0.00138457]
[1765756009168,0.004,88056.0,88055.0,0.00138457]
[1765756009323,0.11638448,88056.0,88055.0,0.05035813]
[1765756009527,0.004,88056.0,88055.0,0.09550813]
[1765756010342,0.1237405,88059.0,88055.0,0.10586466]
[1765756010571,0.11238448,88059.0,88056.0,0.23848397]
[1765756010863,0.11238448,88059.0,88056.0,0.0113564]
[1765756011067,0.11238448,88059.0,88056.0,0.10001467]
[1765756011866,0.1237405,88059.0,88056.0,0.10001467]
[1765756012047,0.11238448,88059.0,88056.0,0.10001467]
[1765756012328,0.38915009,88057.0,88056.0,0.004]
[1765756013187,0.01135602,88059.0,88056.0,0.004]
[1765756013409,0.22710504,88066.0,88056.0,0.004]
[1765756013410,0.11238448,88057.0,88056.0,0.0133564]
[1765756013611,0.34056824,88089.0,88056.0,0.0133564]
[1765756013612,0.2907,88069.0,88067.0,0.01135499]
[1765756013877,0.2907,88069.0,88068.0,0.00678601]
[1765756014047,0.2907,88069.0,88068.0,0.10580601]
[1765756014265,0.2907,88069.0,88068.0,0.12720601]
[1765756014603,0.01804,88073.0,88070.0,0.0113546]
[1765756014823,0.01804,88073.0,88072.0,0.04515]
[1765756015904,0.00161287,88079.0,88076.0,0.22707459]
[1765756016206,0.22707919,88075.0,88071.0,0.0638175]
[1765756016359,0.22707919,88075.0,88050.0,0.33423721]
[1765756016360,0.01135512,88066.0,88063.0,0.0113555]
[1765756016573,0.11238448,88064.0,88063.0,0.0113555]
[1765756016775,0.11238448,88064.0,88063.0,0.06018524]
[1765756017146,0.11238448,88064.0,88063.0,0.04882974]
[1765756017499,0.11238448,88064.0,88055.0,0.22751433]
[1765756017500,0.01135589,88060.0,88055.0,0.23887086]
[1765756017699,0.11238448,88056.0,88055.0,0.0117411]
[1765756017907,0.11238448,88059.0,88058.0,0.2384791]
[1765756018102,0.0113555,88063.0,88060.0,0.01135589]
[1765756018307,0.11238448,88061.0,88060.0,0.01135589]
[1765756018522,0.11238448,88056.0,88055.0,0.00038457]
[1765756018720,0.51782819,88056.0,88055.0,0.00038457]
[1765756019045,0.67941267,88056.0,88055.0,0.00238457]
[1765756019266,0.74718267,88056.0,88055.0,0.00238457]
[1765756020190,0.74718267,88056.0,88055.0,0.00038457]
[1765756020546,0.45228448,88056.0,88055.0,0.00238457]
[1765756020749,0.2907,88056.0,88055.0,0.27926534]
[1765756020950,0.2907,88056.0,88055.0,0.35516324]
[1765756021153,0.2907,88056.0,88055.0,0.35416324]
[1765756021576,0.2917,88056.0,88055.0,0.35416324]
[1765756021778,0.2917,88056.0,88055.0,0.35616324]
[1765756022021,0.2907,88056.0,88055.0,0.35616324]
[1765756022221,0.22709185,88071.0,88055.0,0.35616324]
[1765756022222,0.40308448,88069.0,88068.0,0.01135486]
[1765756022596,0.40308448,88069.0,88068.0,0.06010486]
[1765756022820,0.40308448,88069.0,88068.0,0.08150486]
[1765756023244,0.23841805,88081.0,88073.0,0.01135421]
[1765756023245,0.01296631,88079.0,88073.0,0.01135421]
[1765756023410,0.02350776,88079.0,88074.0,0.04872998]
[1765756024392,0.30366631,88079.0,88074.0,0.06008406]
[1765756024933,0.11238448,88075.0,88074.0,0.06008406]
[1765756025301,0.30366631,88079.0,88075.0,0.01135395]
[1765756025505,0.002,88079.0,88078.0,0.27582145]
[1765756025634,0.002,88079.0,88078.0,0.33901315]
[1765756025835,0.002,88079.0,88078.0,0.39288315]
[1765756026578,0.11238448,88087.0,88085.0,0.22705232]
[1765756029338,0.11238448,88087.0,88079.0,0.22706888]
[1765756029339,0.03024824,88113.0,88086.0,0.32966825]
[1765756029532,0.03024824,88113.0,88103.0,0.01135035]
[1765756029533,0.11238448,88104.0,88103.0,0.01135035]
[1765756030078,0.11238448,88104.0,88103.0,0.06010035]
[1765756030287,0.11238448,88104.0,88103.0,0.04875]
[1765756030490,0.11238448,88103.0,88102.0,0.03246]
[1765756031670,0.11438448,88103.0,88102.0,0.03246]
[1765756031879,0.01135099,88098.0,88095.0,0.03246]
[1765756032017,0.11238448,88092.0,88088.0,0.04381228]
[1765756032243,0.11238448,88089.0,88088.0,0.03246]
[1765756032485,0.11238448,88088.0,88085.0,0.01135267]
[1765756032721,0.11238448,88088.0,88085.0,0.23840555]
[1765756032952,0.01135048,88102.0,88092.0,0.22703537]
[1765756033159,0.2907,88104.0,88100.0,0.01135073]
[1765756033394,0.01135048,88102.0,88099.0,0.01135086]
[1765756033770,0.23836612,88100.0,88094.0,0.01135151]
[1765756033973,0.11238448,88096.0,88095.0,0.01135138]
[1765756034176,0.11238448,88096.0,88095.0,0.09763816]
[1765756034382,0.01135073,88100.0,88096.0,0.01135125]
[1765756034578,0.11238448,88099.0,88097.0,0.01135112]
[1765756035803,0.11238448,88099.0,88097.0,0.23837267]
[1765756036045,0.11238448,88099.0,88098.0,0.04875]
[1765756036249,0.11238448,88099.0,88098.0,0.09747998]
[1765756036661,0.01135176,88092.0,88087.0,0.01135241]
[1765756036859,0.11238448,88088.0,88087.0,0.01135241]
[1765756037307,0.22963189,88099.0,88087.0,0.01135241]
[1765756037308,0.00261287,88099.0,88093.0,0.23838255]
[1765756037516,0.00261287,88099.0,88098.0,0.04875]
[1765756037735,0.001,88099.0,88098.0,0.07859779]
[1765756037905,0.001,88099.0,88098.0,0.13246779]
[1765756038062,0.11238448,88104.0,88101.0,0.0113506]
[1765756038264,0.11238448,88104.0,88101.0,0.23836101]
[1765756038489,0.2907,88107.0,88106.0,0.22699929]
[1765756038696,0.2907,88107.0,88106.0,0.35852304]
[1765756038870,0.29081536,88113.0,88110.0,0.01134944]
[1765756039634,0.00011536,88113.0,88112.0,0.04875]
[1765756040039,0.00011536,88113.0,88112.0,0.10262]
[1765756040176,0.00011536,88113.0,88112.0,0.17159852]
[1765756040588,0.02411536,88113.0,88112.0,0.17159852]
[1765756040851,0.01211536,88113.0,88112.0,0.17159852]
[1765756041209,0.01211536,88113.0,88112.0,0.17259852]
[1765756041406,0.01211536,88113.0,88112.0,0.17159852]
[1765756041592,0.00011536,88113.0,88112.0,0.17159852]
[1765756042870,0.00011536,88113.0,88112.0,0.17359852]
[1765756043979,0.00011536,88113.0,88112.0,0.11972852]
[1765756044219,0.00011536,88113.0,88112.0,0.17359852]
[1765756048495,0.00011536,88113.0,88112.0,0.27571981]
[1765756048873,0.00011536,88113.0,88112.0,0.3880298]
[1765756050312,0.00011536,88113.0,88112.0,0.3870298]
[1765756050690,0.00111536,88113.0,88112.0,0.3900298]
[1765756050894,0.00111536,88113.0,88112.0,0.17959852]
[1765756051065,0.00111536,88113.0,88112.0,0.19877386]
[1765756051872,0.00011536,88113.0,88112.0,0.19477386]
[1765756052175,0.00111536,88113.0,88112.0,0.19577386]
[1765756052378,0.00111536,88113.0,88112.0,0.19977386]
[1765756052579,0.00111536,88113.0,88112.0,0.19577386]
[1765756052780,0.00011536,88113.0,88112.0,0.19077386]
[1765756053081,0.00011536,88113.0,88112.0,0.19577386]
[1765756053788,0.00011536,88113.0,88112.0,0.19463852]
[1765756059712,0.00011536,88113.0,88112.0,0.19577244]
[1765756060259,0.04876823,88113.0,88112.0,0.005]
[1765756060453,0.22986271,88113.0,88112.0,0.005]
[1765756060656,0.00172823,88113.0,88112.0,0.05383]
[1765756060856,0.00172823,88113.0,88112.0,0.005]
[1765756061009,0.11411271,88113.0,88112.0,0.005]
[1765756061366,0.11411271,88113.0,88112.0,0.003]
[1765756061367,0.22986271,88113.0,88112.0,0.003]
[1765756061534,0.11238448,88103.0,88097.0,0.22702248]
[1765756061739,0.11238448,88103.0,88101.0,0.10212129]
[1765756062106,0.11238448,88103.0,88101.0,0.32913282]
[1765756062314,0.01135151,88094.0,88090.0,0.01135202]
[1765756062517,0.11238448,88095.0,88092.0,0.01135176]
[1765756062725,0.11238448,88095.0,88093.0,0.25541241]
[1765756062970,0.11238448,88095.0,88093.0,0.02838063]
[1765756063938,0.11238448,88095.0,88093.0,0.25541148]
[1765756064599,0.33941278,88095.0,88093.0,0.02838063]
[1765756064803,0.01135305,88082.0,88077.0,0.0113537]
[1765756065014,0.22705692,88084.0,88078.0,0.23842358]
[1765756065247,0.22705692,88084.0,88069.0,0.12016129]
[1765756065248,0.01135331,88080.0,88074.0,0.01135408]
[1765756065450,0.33945583,88079.0,88074.0,0.01135408]
[1765756065804,0.33945583,88079.0,88070.0,0.0113546]
[1765756065805,0.22707661,88076.0,88070.0,0.0113546]
[1765756066005,0.29576261,88086.0,88059.0,0.26792301]
[1765756066006,0.01135563,88062.0,88059.0,0.01135602]
[1765756066207,0.05839473,88069.0,88065.0,0.23845884]
[1765756066382,0.01135473,88069.0,88065.0,0.01135524]
[1765756066985,0.11238448,88070.0,88066.0,0.01135512]
[1765756067187,0.11238448,88070.0,88067.0,0.23845365]
[1765756067387,0.11238448,88070.0,88068.0,0.07153833]
[1765756068247,0.001,88076.0,88068.0,0.07153833]
[1765756068248,0.04634395,88075.0,88068.0,0.07153833]
[1765756068416,0.11238448,88072.0,88071.0,0.01135447]
[1765756069083,0.03499,88075.0,88071.0,0.01135447]
[1765756069278,0.11238448,88069.0,88068.0,0.07153833]
[1765756069480,0.1237396,88066.0,88063.0,0.0113555]
[1765756069684,0.1237396,88066.0,88057.0,0.01135628]
[1765756069685,0.11238448,88060.0,88057.0,0.01135628]
[1765756069821,0.11238448,88060.0,88057.0,0.23848093]
[1765756070022,0.11238448,88060.0,88057.0,0.23848101]
[1765756070426,0.11238448,88060.0,88059.0,0.01174059]
[1765756070835,0.11238448,88060.0,88059.0,0.00038457]
[1765756071200,0.16203735,88060.0,88059.0,0.00038457]
[1765756071752,0.00361287,88060.0,88059.0,0.04921457]
[1765756071951,0.001,88060.0,88059.0,0.04921457]
[1765756072158,0.2907,88069.0,88066.0,0.01135512]
[1765756072355,0.11238448,88078.0,88075.0,0.01135395]
[1765756072578,0.11238448,88078.0,88075.0,0.06018395]
[1765756072779,0.11238448,88078.0,88077.0,0.27590327]
[1765756072988,0.2907,88083.0,88082.0,0.01135305]
[1765756073193,0.01135279,88084.0,88080.0,0.01135331]
[1765756073509,0.01135254,88086.0,88081.0,0.01135318]
[1765756074146,0.2907,88089.0,88087.0,0.22704587]
[1765756074355,0.11238448,88096.0,88089.0,0.23839425]
[1765756074577,0.11238448,88096.0,88093.0,0.2383827]
[1765756074777,0.01804,88099.0,88096.0,0.01135125]
[1765756075362,0.00011536,88099.0,88097.0,0.22702248]
[1765756075592,0.00011536,88099.0,88098.0,0.04883]
[1765756075946,0.00011536,88099.0,88098.0,0.1027]
[1765756076149,0.00011536,88099.0,88098.0,0.18561857]
[1765756076550,0.00011536,88099.0,88098.0,0.28773986]
[1765756077401,0.00111536,88099.0,88098.0,0.28773986]
[1765756078761,0.00011536,88099.0,88098.0,0.28773986]
[1765756079138,0.00011536,88099.0,88098.0,0.30993847]
[1765756079345,0.00011536,88099.0,88098.0,0.35539847]
[1765756079740,0.00011536,88099.0,88098.0,0.40926847]
[1765756080862,0.00011536,88099.0,88098.0,0.42730847]
[1765756081022,0.00011536,88099.0,88098.0,0.54161846]
[1765756081224,0.03611,88126.0,88115.0,0.0113488]
[1765756081427,0.11238448,88118.0,88117.0,0.01134854]
[1765756081682,0.11399735,88118.0,88117.0,0.03858588]
[1765756081833,0.00011543,88126.0,88125.0,0.22695035]
[1765756082443,0.00011543,88126.0,88123.0,0.01134777]
[1765756082444,0.11238448,88124.0,88123.0,0.01134777]
[1765756082779,0.2907,88124.0,88123.0,0.01134777]
[1765756083004,0.40308448,88124.0,88123.0,0.01134777]
[1765756083162,0.40308448,88124.0,88123.0,0.06400269]
[1765756083894,0.40408448,88124.0,88123.0,0.06400269]
[1765756084474,0.40308448,88124.0,88123.0,0.06400269]
[1765756084670,0.40969735,88124.0,88123.0,0.06500269]
[1765756084855,0.40969735,88124.0,88123.0,0.01234777]
[1765756085041,0.40469735,88124.0,88123.0,0.01134777]
[1765756085238,0.40308448,88121.0,88120.0,0.01134816]
[1765756086550,0.40408448,88121.0,88120.0,0.01134816]
[1765756087597,0.40508448,88121.0,88120.0,0.01134816]
[1765756087798,0.2927,88121.0,88120.0,0.05265645]
[1765756088061,0.002,88121.0,88120.0,0.37894968]
[1765756088875,0.002,88121.0,88120.0,0.32507968]
[1765756089476,0.001,88121.0,88120.0,0.37894968]
[1765756090010,0.00161287,88124.0,88123.0,0.2269555]
[1765756090188,0.00161287,88124.0,88123.0,0.31248263]
[1765756090791,0.11249991,88126.0,88123.0,0.3777004]
[1765756090792,0.00011543,88126.0,88123.0,0.3777004]
[1765756091028,0.00011543,88126.0,88125.0,0.04546]
[1765756091374,0.00011543,88126.0,88125.0,0.09933]
[1765756091725,0.00011543,88126.0,88125.0,0.16096914]
[1765756091873,0.00111543,88126.0,88125.0,0.16096914]
[1765756092319,0.00111543,88126.0,88125.0,0.10709914]
[1765756092523,0.11349991,88126.0,88125.0,0.06163914]
[1765756092722,0.00111543,88126.0,88125.0,0.06163914]
[1765756092967,0.00211543,88126.0,88125.0,0.06163914]
[1765756093186,0.00111543,88126.0,88125.0,0.06163914]
[1765756093353,0.00211543,88126.0,88125.0,0.06163914]
[1765756093505,0.00211543,88126.0,88125.0,0.10709914]
[1765756093710,0.00211543,88126.0,88125.0,0.16096914]
[1765756094003,0.00211543,88126.0,88125.0,0.10709914]
[1765756094427,0.00211543,88126.0,88125.0,0.16096914]
[1765756094689,0.0037283,88126.0,88125.0,0.06163914]
[1765756094860,0.01134803,88121.0,88118.0,0.01134841]
[1765756095234,0.00161287,88121.0,88119.0,0.2269658]
[1765756095395,0.00161287,88121.0,88120.0,0.07376589]
[1765756096555,0.00011543,88126.0,88125.0,0.22695035]
[1765756096808,0.00011543,88126.0,88125.0,0.27241035]
[1765756096964,0.00011543,88126.0,88125.0,0.32628035]
[1765756097167,0.00011543,88126.0,88125.0,0.43411452]
[1765756097978,0.00111543,88126.0,88125.0,0.43411452]
[1765756098583,0.00211543,88126.0,88125.0,0.43411452]
[1765756098809,0.00111543,88126.0,88125.0,0.43411452]
[1765756099218,0.00011543,88126.0,88125.0,0.43511452]
[1765756099472,1e-08,88127.0,88126.0,0.09933]
[1765756099653,1e-08,88127.0,88126.0,0.33192222]
[1765756100002,1e-08,88127.0,88126.0,0.27521718]
[1765756100464,1e-08,88127.0,88126.0,0.56591718]
[1765756100677,1e-08,88127.0,88126.0,0.67822717]
[1765756101309,0.0004,88159.0,88156.0,0.01134352]
[1765756101529,0.0005154,88159.0,88158.0,0.07239]
[1765756102384,0.0005154,88159.0,88158.0,0.02693]
[1765756102600,0.11289988,88159.0,88158.0,0.02693]
[1765756102819,0.11289988,88159.0,88158.0,0.12626]
[1765756102820,0.0005154,88159.0,88158.0,0.12626]
[1765756103074,1e-08,88159.0,88158.0,0.20800364]
[1765756104109,1e-08,88159.0,88158.0,0.31012493]
[1765756104518,1e-08,88159.0,88158.0,0.42243492]
[1765756104751,1e-08,88159.0,88158.0,0.31012493]
[1765756104965,1e-08,88159.0,88158.0,0.42243492]
[1765756105177,1e-08,88159.0,88158.0,0.20800364]
[1765756105399,1e-08,88159.0,88158.0,0.21100364]
[1765756105631,1e-08,88159.0,88158.0,0.22900364]
[1765756105845,1e-08,88159.0,88158.0,0.23300364]
[1765756105846,0.00100001,88159.0,88158.0,0.23300364]
[1765756106255,1e-08,88159.0,88158.0,0.22900364]
[1765756106458,1e-08,88159.0,88158.0,0.33112493]
[1765756106665,1e-08,88159.0,88158.0,0.33412493]
[1765756107319,1e-08,88160.0,88159.0,0.27614282]
[1765756107533,1e-08,88171.0,88170.0,0.04928]
[1765756107743,1e-08,88173.0,88172.0,0.04928]
[1765756107948,0.00038461,88173.0,88172.0,0.04928]
[1765756108157,0.00038461,88173.0,88172.0,0.10315]
[1765756108362,0.00038461,88173.0,88172.0,0.12924053]
[1765756108816,0.00038461,88173.0,88172.0,0.07537053]
[1765756109037,0.00038461,88173.0,88172.0,0.02609053]
[1765756109462,0.00138461,88173.0,88172.0,0.02609053]
[1765756109674,0.00138461,88173.0,88172.0,0.22825182]
[1765756109879,0.0004,88187.0,88178.0,0.22681394]